[Event "December 5 Early 2023"]
[Site "https://www.chess.com"]
[Date "2023.12.05"]
[Round "1"]
[White "Gontcharov, Vladislav"]
[Black "Franchini, Gabriele"]
[Result "1-0"]
[Board "153"]
[TimeControl "180+1"]
[WhiteFideId "4123492"]
[BlackFideId "806790"]
[WhiteElo "2645"]
[BlackElo "2342"]
[WhiteTeam "RUS"]
[BlackTeam "ITA"]
[WhiteClock "0:00:08"]
[BlackClock "0:00:00"]

1. d4 {[%clk 0:03:00]}  d5 {[%clk 0:02:56]} 2. c4 {[%clk 0:02:58]}  e6 {[%clk 0:02:56]} 3. Nc3 {[%clk 0:02:57]}  Nf6 {[%clk 0:02:56]} 4. cxd5 {[%clk 0:02:57]}  exd5 {[%clk 0:02:57]} 5. Bg5 {[%clk 0:02:57]}  c6 {[%clk 0:02:58]} 6. e3 {[%clk 0:02:56]}  h6 {[%clk 0:02:58]} 7. Bh4 {[%clk 0:02:56]}  Be7 {[%clk 0:02:58]} 8. Bd3 {[%clk 0:02:56]}  O-O {[%clk 0:02:58]} 9. Nge2 {[%clk 0:02:55]}  Re8 {[%clk 0:02:57]} 10. O-O {[%clk 0:02:52]}  a5 {[%clk 0:02:56]} 11. Rc1 {[%clk 0:02:47]}  Nbd7 {[%clk 0:02:45]} 12. b3 {[%clk 0:02:40]}  b5 {[%clk 0:02:41]} 13. f3 {[%clk 0:02:28]}  Ba6 {[%clk 0:02:25]} 14. Bf2 {[%clk 0:02:23]}  a4 {[%clk 0:02:12]} 15. bxa4 {[%clk 0:02:09]}  b4 {[%clk 0:02:12]} 16. Bxa6 {[%clk 0:02:09]}  Rxa6 {[%clk 0:02:09]} 17. Nb1 {[%clk 0:02:05]}  Qa8 {[%clk 0:02:01]} 18. Qb3 {[%clk 0:01:51]}  Rxa4 {[%clk 0:01:51]} 19. Rc2 {[%clk 0:01:50]}  Nb6 {[%clk 0:01:43]} 20. Rfc1 {[%clk 0:01:45]}  Nc4 {[%clk 0:01:41]} 21. Nf4 {[%clk 0:01:39]}  Bd6 {[%clk 0:01:34]} 22. Ne2 {[%clk 0:01:29]}  Ra6 {[%clk 0:01:21]} 23. Ng3 {[%clk 0:01:14]}  g6 {[%clk 0:01:19]} 24. Nf1 {[%clk 0:01:13]}  Kg7 {[%clk 0:01:17]} 25. Nfd2 {[%clk 0:01:12]}  Nxd2 {[%clk 0:01:08]} 26. Rxd2 {[%clk 0:01:11]}  Nd7 {[%clk 0:00:43]} 27. Rdc2 {[%clk 0:01:08]}  Rc8 {[%clk 0:00:41]} 28. e4 {[%clk 0:01:06]}  Nb6 {[%clk 0:00:41]} 29. e5 {[%clk 0:01:06]}  Be7 {[%clk 0:00:40]} 30. h4 {[%clk 0:00:52]}  Nc4 {[%clk 0:00:40]} 31. Nd2 {[%clk 0:00:51]}  Ra3 {[%clk 0:00:38]} 32. Qb1 {[%clk 0:00:50]}  Ne3 {[%clk 0:00:30]} 33. Bxe3 {[%clk 0:00:42]}  Rxe3 {[%clk 0:00:31]} 34. Nf1 {[%clk 0:00:42]}  Ra3 {[%clk 0:00:28]} 35. h5 {[%clk 0:00:39]}  Qa7 {[%clk 0:00:22]} 36. Rd1 {[%clk 0:00:37]}  Rc3 {[%clk 0:00:17]} 37. e6 {[%clk 0:00:29]}  f5 {[%clk 0:00:15]} 38. hxg6 {[%clk 0:00:28]}  Kxg6 {[%clk 0:00:15]} 39. Ng3 {[%clk 0:00:25]}  Rf8 {[%clk 0:00:14]} 40. Rxc3 {[%clk 0:00:19]}  bxc3 {[%clk 0:00:15]} 41. Nxf5 {[%clk 0:00:17]}  Rxf5 {[%clk 0:00:14]} 42. g4 {[%clk 0:00:17]}  Bf6 {[%clk 0:00:08]} 43. Qxf5+ {[%clk 0:00:17]}  Kg7 {[%clk 0:00:08]} 44. Kg2 {[%clk 0:00:14]}  Qa3 {[%clk 0:00:08]} 45. Qc2 {[%clk 0:00:12]}  Qa5 {[%clk 0:00:03]} 46. f4 {[%clk 0:00:10]}  c5 {[%clk 0:00:03]} 47. g5 {[%clk 0:00:10]}  hxg5 {[%clk 0:00:03]} 48. fxg5 {[%clk 0:00:10]}  Bxg5 {[%clk 0:00:04]} 49. Rf1 {[%clk 0:00:11]}  Bf6 {[%clk 0:00:02]} 50. Qf5 {[%clk 0:00:10]}  Qd8 {[%clk 0:00:01]} 51. Qg4+ {[%clk 0:00:09]}  Kh8 {[%clk 0:00:00]} 52. Rh1+ {[%clk 0:00:08]} 1-0

[Event "December 5 Early 2023"]
[Site "https://www.chess.com"]
[Date "2023.12.05"]
[Round "1"]
[White "Napoli, Nicolo"]
[Black "Rojas Alarcon, Julian Antonio"]
[Result "0-1"]
[Board "154"]
[TimeControl "180+1"]
[WhiteFideId "813702"]
[BlackFideId "5107407"]
[WhiteElo "2342"]
[BlackElo "2643"]
[WhiteTeam "ITA"]
[BlackTeam "MEX"]
[WhiteClock "0:00:00"]
[BlackClock "0:01:28"]

1. e4 {[%clk 0:02:31]}  e5 {[%clk 0:02:57]} 2. Nf3 {[%clk 0:02:30]}  Nc6 {[%clk 0:02:58]} 3. d4 {[%clk 0:02:28]}  exd4 {[%clk 0:02:58]} 4. Nxd4 {[%clk 0:02:29]}  Bc5 {[%clk 0:02:58]} 5. Nb3 {[%clk 0:02:28]}  Bb6 {[%clk 0:02:57]} 6. Nc3 {[%clk 0:02:28]}  Nf6 {[%clk 0:02:58]} 7. Qe2 {[%clk 0:02:28]}  d6 {[%clk 0:02:58]} 8. Be3 {[%clk 0:02:27]}  Bxe3 {[%clk 0:02:54]} 9. Qxe3 {[%clk 0:02:28]}  O-O {[%clk 0:02:55]} 10. O-O-O {[%clk 0:02:27]}  Re8 {[%clk 0:02:56]} 11. f3 {[%clk 0:02:20]}  a5 {[%clk 0:02:56]} 12. Bb5 {[%clk 0:02:15]}  Bd7 {[%clk 0:02:54]} 13. Bxc6 {[%clk 0:02:01]}  Bxc6 {[%clk 0:02:46]} 14. g4 {[%clk 0:02:01]}  a4 {[%clk 0:02:45]} 15. Nd4 {[%clk 0:02:01]}  a3 {[%clk 0:02:46]} 16. b3 {[%clk 0:01:58]}  Qe7 {[%clk 0:02:41]} 17. h4 {[%clk 0:01:47]}  d5 {[%clk 0:02:30]} 18. g5 {[%clk 0:01:24]}  Nh5 {[%clk 0:02:26]} 19. Nf5 {[%clk 0:01:20]}  Qe5 {[%clk 0:02:22]} 20. Qd4 {[%clk 0:00:32]}  dxe4 {[%clk 0:02:14]} 21. fxe4 {[%clk 0:00:17]}  Qxd4 {[%clk 0:01:53]} 22. Rxd4 {[%clk 0:00:12]}  f6 {[%clk 0:01:53]} 23. gxf6 {[%clk 0:00:10]}  Nxf6 {[%clk 0:01:53]} 24. Rg1 {[%clk 0:00:11]}  g6 {[%clk 0:01:53]} 25. Re1 {[%clk 0:00:06]}  Ra5 {[%clk 0:01:51]} 26. Ng3 {[%clk 0:00:04]}  Rae5 {[%clk 0:01:47]} 27. Kd2 {[%clk 0:00:04]}  Nd7 {[%clk 0:01:39]} 28. Re2 {[%clk 0:00:04]}  Nc5 {[%clk 0:01:39]} 29. Nd5 {[%clk 0:00:03]}  Rc8 {[%clk 0:01:29]} 30. Nf6+ {[%clk 0:00:02]}  Kg7 {[%clk 0:01:29]} 31. Ng4 {[%clk 0:00:01]}  Re7 {[%clk 0:01:28]} 32. e5 {[%clk 0:00:02]}  Ne6 {[%clk 0:01:28]} 33. Rd3 {[%clk 0:00:00]}  Nf4 {[%clk 0:01:28]} 0-1

[Event "December 5 Early 2023"]
[Site "https://www.chess.com"]
[Date "2023.12.05"]
[Round "1"]
[White "Jain Kashish Manoj"]
[Black "Ghimoyan, Narek"]
[Result "1-0"]
[Board "157"]
[TimeControl "180+1"]
[WhiteFideId "35081098"]
[BlackFideId "13315412"]
[WhiteElo "2640"]
[BlackElo "2336"]
[WhiteTeam "IND"]
[BlackTeam "ARM"]
[WhiteClock "0:00:06"]
[BlackClock "0:01:00"]

1. Nf3 {[%clk 0:02:57]}  Nf6 {[%clk 0:02:59]} 2. g3 {[%clk 0:02:55]}  c5 {[%clk 0:02:59]} 3. Bg2 {[%clk 0:02:55]}  d6 {[%clk 0:02:59]} 4. O-O {[%clk 0:02:54]}  g6 {[%clk 0:02:59]} 5. c3 {[%clk 0:02:45]}  Bg7 {[%clk 0:02:57]} 6. d4 {[%clk 0:02:45]}  cxd4 {[%clk 0:02:58]} 7. cxd4 {[%clk 0:02:45]}  O-O {[%clk 0:02:59]} 8. Nc3 {[%clk 0:02:45]}  Nc6 {[%clk 0:02:55]} 9. d5 {[%clk 0:02:39]}  Na5 {[%clk 0:02:52]} 10. Rb1 {[%clk 0:02:31]}  b6 {[%clk 0:02:50]} 11. Nd4 {[%clk 0:02:25]}  Bd7 {[%clk 0:02:48]} 12. b3 {[%clk 0:02:01]}  Rc8 {[%clk 0:02:47]} 13. Bb2 {[%clk 0:02:01]}  h5 {[%clk 0:02:45]} 14. Qd3 {[%clk 0:01:57]}  h4 {[%clk 0:02:40]} 15. Rbc1 {[%clk 0:01:54]}  Nb7 {[%clk 0:02:36]} 16. b4 {[%clk 0:01:45]}  Rc7 {[%clk 0:02:29]} 17. Nc6 {[%clk 0:01:36]}  Qe8 {[%clk 0:02:22]} 18. Nxa7 {[%clk 0:01:24]}  h3 {[%clk 0:02:19]} 19. Bh1 {[%clk 0:01:20]}  Bf5 {[%clk 0:02:14]} 20. Qd2 {[%clk 0:01:12]}  Ng4 {[%clk 0:02:02]} 21. Nc6 {[%clk 0:01:10]}  Ne5 {[%clk 0:02:01]} 22. Nb5 {[%clk 0:01:07]}  Rc8 {[%clk 0:02:00]} 23. Nxe5 {[%clk 0:01:05]}  dxe5 {[%clk 0:01:59]} 24. a4 {[%clk 0:01:01]}  Nd6 {[%clk 0:01:59]} 25. Nxd6 {[%clk 0:00:53]}  exd6 {[%clk 0:01:59]} 26. b5 {[%clk 0:00:54]}  Rxc1 {[%clk 0:01:56]} 27. Rxc1 {[%clk 0:00:53]}  Qa8 {[%clk 0:01:57]} 28. Qb4 {[%clk 0:00:51]}  Rc8 {[%clk 0:01:54]} 29. Rc4 {[%clk 0:00:28]}  Bf8 {[%clk 0:01:47]} 30. Bf3 {[%clk 0:00:24]}  Bd7 {[%clk 0:01:44]} 31. e4 {[%clk 0:00:20]}  Rc5 {[%clk 0:01:36]} 32. Be2 {[%clk 0:00:20]}  Qd8 {[%clk 0:01:34]} 33. Bc1 {[%clk 0:00:19]}  Qf6 {[%clk 0:01:33]} 34. Be3 {[%clk 0:00:19]}  Rxc4 {[%clk 0:01:28]} 35. Qxc4 {[%clk 0:00:19]}  Qd8 {[%clk 0:01:29]} 36. a5 {[%clk 0:00:15]}  bxa5 {[%clk 0:01:28]} 37. b6 {[%clk 0:00:16]}  a4 {[%clk 0:01:28]} 38. Qc7 {[%clk 0:00:08]}  Qxc7 {[%clk 0:01:23]} 39. bxc7 {[%clk 0:00:09]}  a3 {[%clk 0:01:17]} 40. Bc1 {[%clk 0:00:09]}  a2 {[%clk 0:01:17]} 41. Bb2 {[%clk 0:00:10]}  Bc8 {[%clk 0:01:16]} 42. Bb5 {[%clk 0:00:10]}  Be7 {[%clk 0:01:17]} 43. Bc4 {[%clk 0:00:10]}  Kf8 {[%clk 0:01:15]} 44. Bxa2 {[%clk 0:00:10]}  Ke8 {[%clk 0:01:16]} 45. Bc3 {[%clk 0:00:09]}  Kd7 {[%clk 0:01:07]} 46. Ba5 {[%clk 0:00:09]}  Ba6 {[%clk 0:01:08]} 47. Bb3 {[%clk 0:00:08]}  Bb5 {[%clk 0:01:07]} 48. Bd1 {[%clk 0:00:06]}  f5 {[%clk 0:01:07]} 49. exf5 {[%clk 0:00:05]}  gxf5 {[%clk 0:01:08]} 50. Bh5 {[%clk 0:00:06]}  f4 {[%clk 0:01:00]} 51. Bg4+ {[%clk 0:00:06]} 1-0

[Event "December 5 Early 2023"]
[Site "https://www.chess.com"]
[Date "2023.12.05"]
[Round "1"]
[White "Ruge, Edison"]
[Black "Renjith, Sravan"]
[Result "0-1"]
[Board "160"]
[TimeControl "180+1"]
[WhiteFideId "4401000"]
[BlackFideId "4306783"]
[WhiteElo "2315"]
[BlackElo "2635"]
[WhiteTeam "COL"]
[BlackTeam "NZL"]
[WhiteClock "0:00:00"]
[BlackClock "0:01:21"]

1. e4 {[%clk 0:03:00]}  e5 {[%clk 0:02:57]} 2. Nf3 {[%clk 0:03:00]}  Nc6 {[%clk 0:02:54]} 3. Bb5 {[%clk 0:03:01]}  Nge7 {[%clk 0:02:54]} 4. Qe2 {[%clk 0:03:00]}  g6 {[%clk 0:02:52]} 5. c3 {[%clk 0:02:59]}  Bg7 {[%clk 0:02:52]} 6. O-O {[%clk 0:03:00]}  O-O {[%clk 0:02:52]} 7. Re1 {[%clk 0:02:59]}  a6 {[%clk 0:02:50]} 8. Ba4 {[%clk 0:02:58]}  d6 {[%clk 0:02:49]} 9. h3 {[%clk 0:02:56]}  b5 {[%clk 0:02:48]} 10. Bc2 {[%clk 0:02:52]}  h6 {[%clk 0:02:46]} 11. d3 {[%clk 0:02:52]}  f5 {[%clk 0:02:46]} 12. Nbd2 {[%clk 0:02:51]}  Be6 {[%clk 0:02:38]} 13. Bb3 {[%clk 0:02:49]}  Qd7 {[%clk 0:02:36]} 14. Bxe6+ {[%clk 0:02:48]}  Qxe6 {[%clk 0:02:37]} 15. exf5 {[%clk 0:02:45]}  Qxf5 {[%clk 0:02:35]} 16. Ne4 {[%clk 0:02:39]}  g5 {[%clk 0:02:31]} 17. Ng3 {[%clk 0:02:38]}  Qf7 {[%clk 0:02:31]} 18. Nd2 {[%clk 0:02:33]}  Ng6 {[%clk 0:02:24]} 19. Rf1 {[%clk 0:02:08]}  Nf4 {[%clk 0:02:22]} 20. Qe3 {[%clk 0:02:00]}  Ne7 {[%clk 0:02:21]} 21. c4 {[%clk 0:01:46]}  h5 {[%clk 0:02:12]} 22. Nge4 {[%clk 0:01:36]}  Nf5 {[%clk 0:02:12]} 23. Qf3 {[%clk 0:00:46]}  Nd4 {[%clk 0:02:10]} 24. Qd1 {[%clk 0:00:42]}  Qg6 {[%clk 0:01:59]} 25. Nb3 {[%clk 0:00:28]}  Nde6 {[%clk 0:01:43]} 26. Bxf4 {[%clk 0:00:26]}  Nxf4 {[%clk 0:01:39]} 27. cxb5 {[%clk 0:00:24]}  axb5 {[%clk 0:01:38]} 28. Rc1 {[%clk 0:00:20]}  Rf7 {[%clk 0:01:36]} 29. a3 {[%clk 0:00:18]}  Raf8 {[%clk 0:01:32]} 30. f3 {[%clk 0:00:16]}  Nd5 {[%clk 0:01:26]} 31. Qe2 {[%clk 0:00:15]}  Bh6 {[%clk 0:01:24]} 32. Rc6 {[%clk 0:00:14]}  g4 {[%clk 0:01:23]} 33. hxg4 {[%clk 0:00:11]}  hxg4 {[%clk 0:01:22]} 34. Nbd2 {[%clk 0:00:09]}  Be3+ {[%clk 0:01:21]} 35. Nf2 {[%clk 0:00:00]}  g3 {[%clk 0:01:21]} 0-1

[Event "December 5 Early 2023"]
[Site "https://www.chess.com"]
[Date "2023.12.05"]
[Round "1"]
[White "Ehlvest, Jaan"]
[Black "Gutkin, Ilya"]
[Result "1-0"]
[Board "161"]
[TimeControl "180+1"]
[WhiteFideId "4500016"]
[BlackFideId "16203470"]
[WhiteElo "2629"]
[BlackElo "2315"]
[WhiteTeam "USA"]
[BlackTeam "GER"]
[WhiteClock "0:02:40"]
[BlackClock "0:02:08"]

1. e4 {[%clk 0:02:57]}  e5 {[%clk 0:02:59]} 2. Nf3 {[%clk 0:02:56]}  Nc6 {[%clk 0:02:59]} 3. Bb5 {[%clk 0:02:55]}  Nf6 {[%clk 0:02:58]} 4. O-O {[%clk 0:02:54]}  Nxe4 {[%clk 0:02:58]} 5. Re1 {[%clk 0:02:54]}  Nd6 {[%clk 0:02:58]} 6. Ba4 {[%clk 0:02:54]}  Be7 {[%clk 0:02:57]} 7. Nc3 {[%clk 0:02:54]}  O-O {[%clk 0:02:56]} 8. d4 {[%clk 0:02:54]}  exd4 {[%clk 0:02:56]} 9. Nd5 {[%clk 0:02:51]}  Bf6 {[%clk 0:02:35]} 10. Bf4 {[%clk 0:02:46]}  Nf5 {[%clk 0:02:08]} 11. Bxc7 {[%clk 0:02:40]} 1-0

[Event "December 5 Early 2023"]
[Site "https://www.chess.com"]
[Date "2023.12.05"]
[Round "1"]
[White "Shapiro, Daniel"]
[Black "Taichman, Ori"]
[Result "0-1"]
[Board "164"]
[TimeControl "180+1"]
[WhiteFideId "2001780"]
[BlackFideId "2804069"]
[WhiteElo "2312"]
[BlackElo "2626"]
[WhiteTeam "USA"]
[BlackTeam "ISR"]
[WhiteClock "0:00:07"]
[BlackClock "0:00:57"]

1. d4 {[%clk 0:03:00]}  Nf6 {[%clk 0:02:54]} 2. c4 {[%clk 0:03:00]}  g6 {[%clk 0:02:54]} 3. Nc3 {[%clk 0:03:00]}  Bg7 {[%clk 0:02:55]} 4. e4 {[%clk 0:03:00]}  O-O {[%clk 0:02:56]} 5. Be2 {[%clk 0:03:00]}  d6 {[%clk 0:02:56]} 6. Nf3 {[%clk 0:03:00]}  e5 {[%clk 0:02:55]} 7. O-O {[%clk 0:02:57]}  Nc6 {[%clk 0:02:54]} 8. d5 {[%clk 0:02:57]}  Ne7 {[%clk 0:02:55]} 9. a4 {[%clk 0:02:57]}  Ne8 {[%clk 0:02:49]} 10. Ne1 {[%clk 0:02:55]}  f5 {[%clk 0:02:49]} 11. f3 {[%clk 0:02:54]}  f4 {[%clk 0:02:46]} 12. a5 {[%clk 0:02:50]}  a6 {[%clk 0:02:39]} 13. b4 {[%clk 0:02:48]}  g5 {[%clk 0:02:39]} 14. Nd3 {[%clk 0:02:48]}  h5 {[%clk 0:02:38]} 15. c5 {[%clk 0:02:44]}  Ng6 {[%clk 0:02:38]} 16. Ba3 {[%clk 0:02:35]}  Nf6 {[%clk 0:02:22]} 17. Nf2 {[%clk 0:02:26]}  Rf7 {[%clk 0:02:22]} 18. b5 {[%clk 0:02:19]}  Bf8 {[%clk 0:02:13]} 19. b6 {[%clk 0:02:10]}  cxb6 {[%clk 0:02:12]} 20. axb6 {[%clk 0:02:02]}  dxc5 {[%clk 0:02:10]} 21. Na4 {[%clk 0:02:00]}  Rg7 {[%clk 0:02:02]} 22. h3 {[%clk 0:01:40]}  g4 {[%clk 0:02:02]} 23. fxg4 {[%clk 0:01:34]}  hxg4 {[%clk 0:02:03]} 24. Nxg4 {[%clk 0:01:31]}  Nxe4 {[%clk 0:01:55]} 25. Bf3 {[%clk 0:00:58]}  Bxg4 {[%clk 0:01:49]} 26. Bxg4 {[%clk 0:00:54]}  Ng3 {[%clk 0:01:44]} 27. Be6+ {[%clk 0:00:52]}  Kh8 {[%clk 0:01:42]} 28. Rf2 {[%clk 0:00:35]}  e4 {[%clk 0:01:39]} 29. Qg4 {[%clk 0:00:31]}  Bd6 {[%clk 0:01:21]} 30. Bxc5 {[%clk 0:00:26]}  Bxc5 {[%clk 0:01:10]} 31. Nxc5 {[%clk 0:00:25]}  Qxb6 {[%clk 0:01:10]} 32. Nd7 {[%clk 0:00:25]}  Qd4 {[%clk 0:00:58]} 33. Qg5 {[%clk 0:00:07]}  Qxa1+ {[%clk 0:00:57]} 0-1

[Event "December 5 Early 2023"]
[Site "https://www.chess.com"]
[Date "2023.12.05"]
[Round "1"]
[White "Skliarov, Viktor"]
[Black "Nissinen, Niilo Man"]
[Result "1-0"]
[Board "165"]
[TimeControl "180+1"]
[WhiteFideId "14106736"]
[BlackFideId "30950767"]
[WhiteElo "2622"]
[BlackElo "2310"]
[WhiteTeam "UKR"]
[BlackTeam "HKG"]
[WhiteClock "0:00:51"]
[BlackClock "0:00:09"]

1. e4 {[%clk 0:03:00]}  c5 {[%clk 0:02:59]} 2. Nf3 {[%clk 0:02:59]}  Nc6 {[%clk 0:02:59]} 3. Bb5 {[%clk 0:02:58]}  g6 {[%clk 0:03:00]} 4. O-O {[%clk 0:02:58]}  Bg7 {[%clk 0:02:59]} 5. Re1 {[%clk 0:02:58]}  Nf6 {[%clk 0:02:57]} 6. e5 {[%clk 0:02:59]}  Nd5 {[%clk 0:02:57]} 7. Nc3 {[%clk 0:02:59]}  Nc7 {[%clk 0:02:57]} 8. Bxc6 {[%clk 0:02:59]}  dxc6 {[%clk 0:02:57]} 9. Ne4 {[%clk 0:03:00]}  Ne6 {[%clk 0:02:54]} 10. d3 {[%clk 0:03:00]}  O-O {[%clk 0:02:53]} 11. Be3 {[%clk 0:02:55]}  b6 {[%clk 0:02:52]} 12. Qd2 {[%clk 0:02:55]}  Nd4 {[%clk 0:02:47]} 13. Nxd4 {[%clk 0:02:55]}  cxd4 {[%clk 0:02:47]} 14. Bh6 {[%clk 0:02:55]}  Be6 {[%clk 0:02:40]} 15. h4 {[%clk 0:02:44]}  Qd5 {[%clk 0:02:24]} 16. h5 {[%clk 0:02:13]}  Bxe5 {[%clk 0:01:12]} 17. Bxf8 {[%clk 0:02:10]}  Rxf8 {[%clk 0:01:13]} 18. h6 {[%clk 0:01:47]}  Bc8 {[%clk 0:00:47]} 19. c4 {[%clk 0:01:34]}  dxc3 {[%clk 0:00:42]} 20. bxc3 {[%clk 0:01:35]}  c5 {[%clk 0:00:42]} 21. Rad1 {[%clk 0:01:26]}  Rd8 {[%clk 0:00:40]} 22. d4 {[%clk 0:01:15]}  cxd4 {[%clk 0:00:20]} 23. cxd4 {[%clk 0:01:15]}  Bb8 {[%clk 0:00:11]} 24. Nc3 {[%clk 0:01:11]}  Qd6 {[%clk 0:00:11]} 25. g3 {[%clk 0:00:57]}  Bb7 {[%clk 0:00:12]} 26. d5 {[%clk 0:00:57]}  a6 {[%clk 0:00:11]} 27. Qd4 {[%clk 0:00:51]}  b5 {[%clk 0:00:09]} 28. Qg7# {[%clk 0:00:51]} 1-0

[Event "December 5 Early 2023"]
[Site "https://www.chess.com"]
[Date "2023.12.05"]
[Round "1"]
[White "Goswami, Vedant"]
[Black "Marosi, Levente"]
[Result "0-1"]
[Board "166"]
[TimeControl "180+1"]
[WhiteFideId "5003725"]
[BlackFideId "747181"]
[WhiteElo "2310"]
[BlackElo "2618"]
[WhiteTeam "IND"]
[BlackTeam "HUN"]
[WhiteClock "0:00:13"]
[BlackClock "0:01:20"]

1. d4 {[%clk 0:02:58]}  Nf6 {[%clk 0:02:59]} 2. Nf3 {[%clk 0:02:57]}  g6 {[%clk 0:03:00]} 3. Nc3 {[%clk 0:02:55]}  d5 {[%clk 0:03:00]} 4. Bf4 {[%clk 0:02:50]}  Bg7 {[%clk 0:03:00]} 5. e3 {[%clk 0:02:50]}  O-O {[%clk 0:02:59]} 6. h3 {[%clk 0:02:43]}  c5 {[%clk 0:02:59]} 7. Be2 {[%clk 0:02:41]}  Nc6 {[%clk 0:02:59]} 8. O-O {[%clk 0:02:39]}  Re8 {[%clk 0:02:59]} 9. a3 {[%clk 0:02:30]}  Ne4 {[%clk 0:02:53]} 10. Nb5 {[%clk 0:02:10]}  e5 {[%clk 0:02:44]} 11. dxe5 {[%clk 0:02:01]}  Nxe5 {[%clk 0:02:45]} 12. Nxe5 {[%clk 0:02:00]}  Bxe5 {[%clk 0:02:45]} 13. Bxe5 {[%clk 0:01:58]}  Rxe5 {[%clk 0:02:46]} 14. c4 {[%clk 0:01:52]}  Bxh3 {[%clk 0:01:55]} 15. gxh3 {[%clk 0:01:21]}  Qh4 {[%clk 0:01:54]} 16. Bg4 {[%clk 0:01:08]}  h5 {[%clk 0:01:42]} 17. Nc7 {[%clk 0:00:42]}  hxg4 {[%clk 0:01:26]} 18. Nxa8 {[%clk 0:00:13]}  Qxh3 {[%clk 0:01:20]} 0-1

[Event "December 5 Early 2023"]
[Site "https://www.chess.com"]
[Date "2023.12.05"]
[Round "1"]
[White "Degenbaev, Aziz"]
[Black "Lopez Del Alamo, Antonio"]
[Result "1-0"]
[Board "167"]
[TimeControl "180+1"]
[WhiteFideId "13802640"]
[BlackFideId "2227339"]
[WhiteElo "2618"]
[BlackElo "2308"]
[WhiteTeam "KGZ"]
[BlackTeam "ESP"]
[WhiteClock "0:00:41"]
[BlackClock "0:01:04"]

1. e4 {[%clk 0:03:00]}  c5 {[%clk 0:02:59]} 2. Nf3 {[%clk 0:02:58]}  e6 {[%clk 0:02:59]} 3. d4 {[%clk 0:02:54]}  cxd4 {[%clk 0:03:00]} 4. Nxd4 {[%clk 0:02:54]}  Nf6 {[%clk 0:03:00]} 5. Nc3 {[%clk 0:02:54]}  Nc6 {[%clk 0:03:00]} 6. a3 {[%clk 0:02:54]}  d6 {[%clk 0:02:58]} 7. Be3 {[%clk 0:02:49]}  Be7 {[%clk 0:02:56]} 8. f3 {[%clk 0:02:49]}  O-O {[%clk 0:02:56]} 9. Qd2 {[%clk 0:02:50]}  a6 {[%clk 0:02:54]} 10. O-O-O {[%clk 0:02:50]}  Qc7 {[%clk 0:02:55]} 11. g4 {[%clk 0:02:50]}  Nxd4 {[%clk 0:02:53]} 12. Bxd4 {[%clk 0:02:49]}  b5 {[%clk 0:02:54]} 13. h4 {[%clk 0:02:46]}  Rb8 {[%clk 0:02:52]} 14. h5 {[%clk 0:02:46]}  Qc6 {[%clk 0:02:25]} 15. g5 {[%clk 0:02:34]}  Nd7 {[%clk 0:02:24]} 16. g6 {[%clk 0:02:28]}  fxg6 {[%clk 0:02:18]} 17. hxg6 {[%clk 0:02:28]}  h6 {[%clk 0:02:15]} 18. Rxh6 {[%clk 0:02:08]}  gxh6 {[%clk 0:02:14]} 19. Qxh6 {[%clk 0:02:09]}  Bg5+ {[%clk 0:02:14]} 20. Qxg5 {[%clk 0:02:09]}  Ne5 {[%clk 0:02:11]} 21. Bxe5 {[%clk 0:01:59]}  dxe5 {[%clk 0:02:08]} 22. g7 {[%clk 0:02:00]}  Re8 {[%clk 0:02:02]} 23. Qh6 {[%clk 0:01:59]}  Bb7 {[%clk 0:01:56]} 24. Be2 {[%clk 0:01:27]}  Rbd8 {[%clk 0:01:41]} 25. Rxd8 {[%clk 0:01:15]}  Rxd8 {[%clk 0:01:42]} 26. Qh8+ {[%clk 0:01:15]}  Kf7 {[%clk 0:01:43]} 27. Qxd8 {[%clk 0:01:16]}  Kxg7 {[%clk 0:01:43]} 28. Qg5+ {[%clk 0:01:16]}  Kf7 {[%clk 0:01:43]} 29. Qxe5 {[%clk 0:01:17]}  Qb6 {[%clk 0:01:41]} 30. f4 {[%clk 0:01:10]}  a5 {[%clk 0:01:33]} 31. Bh5+ {[%clk 0:01:09]}  Ke7 {[%clk 0:01:31]} 32. Qg7+ {[%clk 0:01:07]}  Kd8 {[%clk 0:01:30]} 33. Qh8+ {[%clk 0:00:48]}  Kc7 {[%clk 0:01:30]} 34. Qe5+ {[%clk 0:00:48]}  Kc8 {[%clk 0:01:29]} 35. Nxb5 {[%clk 0:00:43]}  Qg1+ {[%clk 0:01:04]} 36. Bd1 {[%clk 0:00:41]} 1-0